bitfinex/quotes_SOLUSD_20220105
["timestamp","ask_amount","ask_price","bid_price","bid_amount"]
[1641390349879,77.9619,168.55,168.42,67.0]
[1641390350082,77.9619,168.55,168.43,8.62]
[1641390350280,77.9619,168.55,168.43,10.09846154]
[1641390350488,2.72763941,168.54,168.44,2.2539707]
[1641390350681,2.72763941,168.54,168.44,10.8139707]
[1641390350883,2.72763941,168.54,168.44,11.0739707]
[1641390351283,2.72763941,168.54,168.44,10.03846154]
[1641390351784,2.72763941,168.54,168.44,8.56]
[1641390351982,0.06,168.53,168.39,8.56]
[1641390352183,0.06,168.53,168.33,9.021]
[1641390352184,23.1578,168.53,168.38,2.26767732]
[1641390352382,23.6578,168.53,168.37,8.56]
[1641390352582,8.56,168.52,168.37,8.56]
[1641390352882,48.5975073,168.51,168.37,8.56]
[1641390353085,48.5975073,168.51,168.4,0.12403857]
[1641390353284,49.0975073,168.51,168.4,0.12403857]
[1641390353484,2.53519091,168.49,168.4,0.12403857]
[1641390353685,75.35309091,168.49,168.4,0.12403857]
[1641390354185,22.9419,168.48,168.4,0.12403857]
[1641390357185,22.9419,168.48,168.4,2.47185155]
[1641390357385,22.9419,168.48,168.4,4.21031309]
[1641390361589,75.35309091,168.49,168.4,4.21031309]
[1641390363699,2.53519091,168.49,168.4,4.21031309]
[1641390363898,2.53519091,168.49,168.41,0.06]
[1641390364400,2.53519091,168.49,168.42,1.47846154]
[1641390364802,2.53519091,168.49,168.42,1.73846154]
[1641390365198,2.53519091,168.49,168.43,1.47846154]
[1641390365400,2.53519091,168.49,168.43,28.6925804]
[1641390365598,2.53519091,168.49,168.43,28.9525804]
[1641390365801,74.8952,168.52,168.44,1.47846154]
[1641390365999,74.8952,168.52,168.44,1.73846154]
[1641390366400,74.8952,168.52,168.45,1.47846154]
[1641390366801,77.64741922,168.52,168.46,3.0034901]
[1641390367019,77.64741922,168.52,168.46,3.2634901]
[1641390367219,74.8952,168.52,168.46,4.74195164]
[1641390368018,24.0461,168.53,168.46,4.74195164]
[1641390368220,2.43175656,168.52,168.46,4.74195164]
[1641390368522,2.43175656,168.52,168.46,1.73846154]
[1641390370522,2.43175656,168.52,168.45,2.2684485]
[1641390370920,2.43175656,168.52,168.44,1.47846154]
[1641390371921,2.43175656,168.52,168.44,1.73846154]
[1641390372326,2.43175656,168.52,168.5,0.12403857]
[1641390372523,59.06430002,168.51,168.5,0.12403857]
[1641390376728,6.06430002,168.51,168.5,0.12403857]
[1641390378731,37.06430002,168.51,168.5,0.12403857]
[1641390379734,66.06430002,168.51,168.5,0.12403857]
[1641390381346,66.06430002,168.51,168.39,17.489]
[1641390381347,82.12,168.5,168.39,8.929]
[1641390381740,2.26262973,168.49,168.4,4.10333889]
[1641390381943,25.53012973,168.49,168.4,4.10333889]
[1641390382138,25.53012973,168.49,168.41,31.02683984]
[1641390382539,25.53012973,168.49,168.41,31.28683984]
[1641390382939,25.53012973,168.49,168.42,1.47846154]
[1641390383339,25.53012973,168.49,168.42,1.73846154]
[1641390383638,0.12,168.5,168.42,1.73846154]
[1641390383839,0.12,168.5,168.42,1.79846154]
[1641390384041,0.12,168.5,168.43,1.47846154]
[1641390384438,0.12,168.5,168.43,1.73846154]
[1641390384638,3.05335624,168.5,168.44,2.40966991]
[1641390384838,3.05335624,168.5,168.44,3.88813145]
[1641390385038,0.12,168.5,168.44,4.14813145]
[1641390385239,0.12,168.5,168.45,1.47846154]
[1641390385674,0.12,168.5,168.45,1.73846154]
[1641390386242,2.64792283,168.49,168.45,1.73846154]
[1641390389248,0.12,168.5,168.45,1.73846154]
[1641390390450,2.71557803,168.5,168.45,1.73846154]
[1641390390651,2.71557803,168.5,168.46,1.47846154]
[1641390391053,2.71557803,168.5,168.46,1.73846154]
[1641390391555,2.71557803,168.5,168.46,1.47846154]
[1641390391756,2.71557803,168.5,168.43,1.47846154]
[1641390392955,2.71557803,168.5,168.43,1.73846154]
[1641390395280,2.71557803,168.5,168.43,1.47846154]
[1641390398483,2.71557803,168.5,168.43,1.73846154]
[1641390403793,2.71557803,168.5,168.44,2.82859122]
[1641390404093,2.71557803,168.5,168.44,3.08859122]
[1641390404294,2.71557803,168.5,168.44,4.56705276]
[1641390405297,0.12,168.5,168.44,4.56705276]
[1641390405496,0.12,168.5,168.44,9.78905276]
[1641390406697,2.74542787,168.49,168.44,4.56705276]
[1641390406899,2.74542787,168.49,168.44,1.73846154]
[1641390407301,2.74542787,168.49,168.44,0.26]
[1641390407501,2.74542787,168.49,168.41,1.73846154]
[1641390407902,2.74542787,168.49,168.42,2.37080564]
[1641390408102,2.74542787,168.49,168.42,2.63080564]
[1641390408306,2.74542787,168.49,168.42,1.47846154]
[1641390409510,2.74542787,168.49,168.42,1.73846154]
[1641390410511,2.74542787,168.49,168.42,1.47846154]
[1641390410710,2.74542787,168.49,168.39,8.929]
[1641390411310,28.52879637,168.49,168.38,1.47846154]
[1641390411933,28.52879637,168.49,168.38,1.73846154]
[1641390412134,99.4035,168.48,168.38,1.73846154]
[1641390412335,99.9035,168.48,168.38,1.73846154]
[1641390413135,108.4635,168.48,168.38,1.47846154]
[1641390413435,108.4635,168.48,168.34,7.33202416]
[1641390414237,108.4635,168.48,168.35,2.86477307]
[1641390415338,108.4635,168.48,168.34,7.33202416]
[1641390415838,114.0045,168.48,168.31,9.94321529]
[1641390416039,24.9313,168.47,168.3,7.33202416]
[1641390416238,8.56,168.46,168.31,2.35333437]
[1641390416439,32.7728,168.46,168.31,2.35333437]
[1641390416638,33.0328,168.46,168.31,27.76205864]
[1641390418441,33.0328,168.46,168.31,28.02205864]
[1641390419240,32.7728,168.46,168.31,28.02205864]
[1641390421545,46.48977592,168.45,168.31,28.02205864]
[1641390421745,8.56,168.44,168.31,28.02205864]
[1641390421945,25.29884668,168.43,168.31,28.02205864]
[1641390422245,33.85884668,168.43,168.31,28.02205864]
[1641390422748,75.4263,168.42,168.31,28.02205864]
[1641390423745,100.4140771,168.42,168.31,28.02205864]
[1641390424647,75.4263,168.42,168.31,28.02205864]
[1641390425447,75.4263,168.42,168.31,33.87562126]
[1641390428149,75.4263,168.42,168.31,42.43562126]
[1641390428749,22.7119,168.43,168.31,42.43562126]
[1641390428951,22.7119,168.43,168.32,0.06]
[1641390429151,22.7119,168.43,168.33,8.56]
[1641390429354,22.7119,168.43,168.33,5.85356262]
[1641390429552,22.7119,168.43,168.33,6.11356262]
[1641390429953,24.93727775,168.43,168.33,14.67356262]
[1641390433164,24.93727775,168.43,168.34,0.06]
[1641390434163,24.93727775,168.43,168.35,8.56]
[1641390434563,24.93727775,168.43,168.35,8.82]
[1641390435263,2.22537775,168.43,168.35,8.82]
[1641390436965,22.6639,168.45,168.35,13.783]
[1641390437464,22.6639,168.45,168.35,13.523]
[1641390437865,2.34267368,168.44,168.35,13.523]
[1641390438067,2.34267368,168.44,168.33,5.85356262]
[1641390438968,2.34267368,168.44,168.33,6.11356262]
[1641390441370,2.34267368,168.44,168.33,5.85356262]
[1641390441976,2.84267368,168.44,168.32,9.0372]
[1641390442571,2.84267368,168.44,168.32,9.2972]
[1641390444173,2.34267368,168.44,168.32,9.2972]
[1641390448201,10.90267368,168.44,168.32,9.2972]
[1641390448400,22.5493,168.43,168.32,9.2972]
[1641390449902,31.1093,168.43,168.32,9.2972]
[1641390452509,31.1093,168.43,168.32,9.0372]
[1641390454111,31.1093,168.43,168.32,9.2972]
[1641390462015,31.1093,168.43,168.31,6.19682672]
[1641390462218,31.6093,168.43,168.31,6.19682672]
[1641390463922,31.6093,168.43,168.31,6.45682672]
[1641390464119,31.6093,168.43,168.29,5.85356262]
[1641390464319,31.6093,168.43,168.27,18.89401529]
[1641390464519,31.8693,168.43,168.27,18.89401529]
[1641390465119,31.8693,168.43,168.28,2.90918244]
[1641390465719,31.8693,168.43,168.28,3.16918244]
[1641390466319,46.49999124,168.42,168.28,3.16918244]
[1641390466523,23.42030729,168.4,168.28,3.16918244]
[1641390466719,2.72797677,168.38,168.28,3.16918244]
[1641390469224,2.72797677,168.38,168.28,2.90918244]
[1641390469423,3.22797677,168.38,168.28,2.90918244]
[1641390469623,2.72797677,168.38,168.28,2.90918244]
[1641390470923,8.56,168.37,168.28,2.90918244]
[1641390471325,22.8011,168.36,168.28,2.90918244]
[1641390471623,22.8011,168.36,168.25,30.40906262]
[1641390471824,22.8011,168.36,168.25,14.82956262]
[1641390472023,22.8011,168.36,168.25,15.08956262]
[1641390472423,22.8011,168.36,168.26,2.7620147]
[1641390472824,22.8011,168.36,168.26,3.0220147]
[1641390476028,22.8011,168.36,168.25,5.85356262]
[1641390476429,23.3011,168.36,168.24,6.19828723]
[1641390477032,23.3011,168.36,168.25,2.15259678]
[1641390477633,31.8611,168.36,168.25,2.15259678]
[1641390477930,31.8611,168.36,168.23,9.94321529]
[1641390478130,38.2231,168.36,168.21,23.24526262]
[1641390478532,38.2231,168.36,168.21,14.68526262]
[1641390479560,38.4831,168.36,168.2,2.74350897]
[1641390480561,38.4831,168.36,168.17,5.85356262]
[1641390480761,38.4831,168.36,168.16,9.0161]
[1641390480965,1.66407424,168.35,168.16,9.0161]
[1641390481162,8.56,168.34,168.16,9.0161]
[1641390481364,32.2137,168.34,168.15,9.94321529]
[1641390481564,99.5268569,168.33,168.17,2.8248089]
[1641390481765,2.77886257,168.31,168.17,2.8248089]
[1641390481964,8.56,168.3,168.17,2.8248089]
[1641390482366,9.32,168.3,168.17,2.8248089]
[1641390482567,24.1502,168.29,168.17,2.8248089]
[1641390482766,8.56,168.28,168.17,2.8248089]
[1641390482967,24.5016,168.27,168.17,2.8248089]
[1641390483169,29.35697046,168.26,168.17,2.8248089]
[1641390483368,2.23320448,168.24,168.17,2.8248089]
[1641390483769,2.23320448,168.24,168.17,3.0848089]
[1641390486274,24.6052,168.25,168.17,3.0848089]
[1641390487277,26.90569476,168.25,168.17,3.0848089]
[1641390488275,24.6052,168.25,168.17,3.0848089]
[1641390488475,8.56,168.29,168.17,3.0848089]
[1641390488677,8.56,168.29,168.18,1.47846154]
[1641390488875,23.6761,168.31,168.18,1.47846154]
[1641390489076,23.6761,168.31,168.18,15.62246154]
[1641390489276,2.44605758,168.3,168.19,15.87622236]
[1641390489478,2.44605758,168.3,168.2,35.40657514]
[1641390489882,2.44605758,168.3,168.2,35.66657514]
[1641390490076,2.44605758,168.3,168.2,8.82]
[1641390494581,2.44605758,168.3,168.19,5.93300707]
[1641390495982,2.44605758,168.3,168.19,6.19300707]
[1641390496984,2.94605758,168.3,168.19,6.19300707]
[1641390497385,23.4485,168.29,168.19,6.19300707]
[1641390497782,23.9485,168.29,168.19,5.93300707]
[1641390499083,23.9485,168.29,168.19,6.19300707]
[1641390502086,23.9485,168.29,168.19,0.26]
[1641390502486,23.9485,168.29,168.18,9.1121]
[1641390502886,23.9485,168.29,168.18,8.8521]
[1641390504289,23.9485,168.29,168.18,9.1121]
[1641390506089,23.4485,168.29,168.18,9.1121]
[1641390507093,23.4485,168.29,168.18,10.59056154]
[1641390507293,23.4485,168.29,168.18,9.1121]
[1641390508498,23.4485,168.29,168.18,8.8521]
[1641390510001,23.4485,168.29,168.18,9.1121]
[1641390512507,23.4485,168.29,168.18,8.8521]
[1641390513731,23.4485,168.29,168.18,9.1121]
[1641390515639,32.0085,168.29,168.18,9.1121]
[1641390515837,23.4485,168.29,168.18,9.1121]
[1641390516035,32.0085,168.29,168.18,9.1121]
[1641390516236,32.0085,168.29,168.18,8.8521]
[1641390516638,32.0085,168.29,168.17,2.8248089]
[1641390516639,36.9905,168.29,168.15,30.63466391]
[1641390516938,75.5866,168.28,168.15,5.93300707]
[1641390517137,8.56,168.27,168.15,5.93300707]
[1641390517340,23.3362,168.26,168.15,5.93300707]
[1641390517539,24.51847189,168.25,168.13,11.37669612]
[1641390517739,2.53696544,168.23,168.13,11.37669612]
[1641390517939,75.65456544,168.23,168.13,11.37669612]
[1641390518144,22.9878,168.22,168.13,11.37669612]
[1641390518339,5.0,168.15,168.13,11.63669612]
[1641390519440,5.0,168.15,168.11,25.9146839]
[1641390519640,5.0,168.15,168.11,34.7496839]
[1641390520341,5.0,168.15,168.11,37.00931573]
[1641390520841,5.0,168.15,168.11,37.26931573]
[1641390521443,5.0,168.15,168.11,32.26931573]
[1641390522343,4.9,168.15,168.11,32.26931573]
[1641390523344,4.9,168.15,168.11,26.57235573]
[1641390523745,4.9,168.15,168.12,0.75374471]
[1641390524151,4.9,168.15,168.12,6.68675178]
[1641390524349,4.9,168.15,168.12,6.94675178]
[1641390524548,4.9,168.15,168.12,7.67146861]
[1641390524746,4.9,168.15,168.13,0.75374471]
[1641390524948,4.9,168.15,168.14,30.51224929]
[1641390525148,4.8,168.15,168.14,30.51224929]
[1641390525348,4.8,168.15,168.14,30.77224929]
[1641390526150,4.8,168.15,168.14,0.26]
[1641390526350,4.8,168.15,168.13,7.41146861]
[1641390526351,4.8,168.15,168.13,2.67146861]
[1641390526550,6.06430002,168.14,168.13,2.93146861]
[1641390526750,3.03219997,168.14,168.13,2.93146861]
[1641390526950,4.8,168.15,168.13,0.26]
[1641390527350,4.8,168.15,168.11,19.65463183]
[1641390528255,4.8,168.15,168.11,19.91463183]
[1641390528459,5.0,168.12,168.11,19.91463183]
[1641390528856,5.0,168.12,168.11,25.61208334]
[1641390531357,5.0,168.12,168.11,20.61208334]
[1641390533381,8.03210005,168.12,168.11,15.61208334]
[1641390533982,5.0,168.12,168.11,15.61208334]
[1641390534582,5.0,168.12,168.11,15.35208334]
[1641390534787,5.0,168.12,168.11,23.91208334]
[1641390535685,5.0,168.12,168.11,23.64104334]
[1641390535888,2.40009448,168.21,168.11,23.90104334]
[1641390536285,2.40009448,168.21,168.12,2.27154489]
[1641390536486,38.0,168.2,168.12,1.41336482]
[1641390536787,38.0,168.2,168.12,1.67336482]
[1641390537386,61.8856,168.2,168.12,1.67336482]
[1641390538392,48.0,168.19,168.11,5.62366482]
[1641390538591,2.02625878,168.18,168.12,0.71532302]
[1641390539191,23.8856,168.2,168.12,0.71532302]
[1641390541292,3.0215556,168.19,168.12,0.71532302]
[1641390541491,2.31467698,168.12,168.11,5.88366482]
[1641390541696,8.378977,168.12,168.11,14.44366482]
[1641390542297,2.31467698,168.12,168.11,14.44366482]
[1641390543395,4.28467698,168.12,168.11,14.18366482]
[1641390544197,4.28467698,168.12,168.11,5.62366482]
[1641390544599,4.28467698,168.12,168.11,5.88366482]
[1641390548299,4.28467698,168.12,168.11,5.62366482]
[1641390549601,7.698e-05,168.12,168.11,87.12474498]
[1641390550401,7.698e-05,168.12,168.11,87.38474498]
[1641390552004,7.698e-05,168.12,168.11,27.90628344]
[1641390552405,7.698e-05,168.12,168.11,18.20255742]
[1641390552604,3.03227695,168.12,168.11,18.20255742]
[1641390552807,7.698e-05,168.12,168.11,18.20255742]
[1641390554305,7.698e-05,168.12,168.11,17.94255742]
[1641390554514,7.698e-05,168.12,168.11,3.62366482]
[1641390554515,6.064377,168.12,168.11,3.62366482]
[1641390556209,35.01516418,168.1,168.07,24.02261862]
[1641390556411,3.01516418,168.1,168.07,14.3188926]
[1641390557307,3.01516418,168.1,168.07,5.7588926]
[1641390559930,6.06430002,168.09,168.07,5.7588926]
[1641390560332,6.06430002,168.09,168.07,6.0188926]
[1641390562436,6.06430002,168.09,168.07,5.7588926]
[1641390562634,6.06430002,168.09,168.04,1.47846154]
[1641390562635,12.16030002,168.09,168.04,1.47846154]
[1641390562836,36.74240002,168.09,168.04,10.28306154]
[1641390563035,10.28306154,168.04,168.0,19.11930284]
[1641390563239,15.10506154,168.04,167.98,15.51904399]
[1641390563436,2.64821587,168.03,167.96,6.19917388]
[1641390563835,2.64821587,168.03,167.95,47.19243076]
[1641390565639,2.64821587,168.03,167.95,38.63243076]
[1641390565839,25.62661587,168.03,167.95,38.63243076]
[1641390566238,25.62661587,168.03,167.95,9.0919]
[1641390566439,25.62661587,168.03,167.93,6.20022946]
[1641390566641,25.62661587,168.03,167.93,12.41083322]
[1641390567239,25.62661587,168.03,167.94,37.27279875]
[1641390567641,25.62661587,168.03,167.94,37.53279875]
[1641390567942,55.13841306,168.03,167.94,8.56]
[1641390568143,25.62661587,168.03,167.94,8.56]
[1641390569042,25.62661587,168.03,167.95,22.99546498]
[1641390569474,22.9784,168.03,167.95,22.99546498]
[1641390570047,10.28306154,168.04,167.95,22.99546498]
[1641390570649,10.28306154,168.04,167.95,23.25546498]
[1641390571253,10.28306154,168.04,167.95,28.05445755]
[1641390571853,22.7157,168.03,167.95,28.05445755]
[1641390573252,22.7157,168.03,167.95,23.25546498]
[1641390573454,10.28306154,168.04,167.95,28.05445755]
[1641390574854,10.28306154,168.04,167.95,36.97705755]
[1641390575054,10.28306154,168.04,167.95,45.53705755]
[1641390579362,10.28306154,168.04,167.96,8.9226]
[1641390579565,10.28306154,168.04,167.96,0.26]
[1641390579763,7.18306154,168.04,167.97,11.48155893]
[1641390579963,7.18306154,168.04,167.97,11.74155893]
[1641390580565,7.18306154,168.04,167.98,8.9215]
[1641390580772,7.18306154,168.04,167.98,17.4815]
[1641390580964,7.18306154,168.04,167.98,13.35899257]
[1641390581164,7.18306154,168.04,167.98,13.61899257]
[1641390581566,7.18306154,168.04,168.0,8.9204]
[1641390581763,7.18306154,168.04,168.01,8.56]
[1641390581963,7.18306154,168.04,168.01,14.38454813]
[1641390582166,7.18306154,168.04,168.02,5.56454813]
[1641390582364,7.18306154,168.04,168.03,69.56]
[1641390582566,176.4248,168.14,168.03,69.56]
[1641390582767,2.43005497,168.13,168.04,32.64595296]
[1641390582964,2.43005497,168.13,168.05,8.56]
[1641390583365,2.43005497,168.13,168.05,8.82]
[1641390598105,2.43005497,168.13,168.05,8.56]
[1641390599405,2.43005497,168.13,168.05,8.82]
[1641390602510,2.43005497,168.13,168.05,3.82]
[1641390603711,2.43005497,168.13,168.05,6.11588785]
[1641390604311,1.43005497,168.13,168.05,6.11588785]
[1641390604710,1.43005497,168.13,168.05,15.25998785]
[1641390605311,1.43005497,168.13,168.05,14.99998785]
[1641390605515,1.43005497,168.13,168.05,9.99998785]
[1641390606113,1.43005497,168.13,168.05,9.1441]
[1641390606615,1.43005497,168.13,168.04,5.56454813]
[1641390606616,7.80805497,168.13,168.04,5.56454813]
[1641390606814,26.57976218,168.12,168.0,5.56454813]
[1641390607014,50.12396218,168.12,168.01,2.73318936]
[1641390607517,5.0,168.05,168.01,2.73318936]
[1641390608517,5.0,168.05,168.01,2.99318936]
[1641390609518,5.0,168.05,168.01,8.55773749]
[1641390610520,5.0,168.05,168.02,2.35194253]
[1641390610745,3.03210005,168.04,168.02,2.35194253]
[1641390610916,3.03219997,168.04,168.02,2.35194253]
[1641390611125,5.0,168.05,168.02,2.35194253]
[1641390611920,2.4237,168.05,168.02,2.35194253]
[1641390612119,1.3252,168.05,168.02,2.35194253]
[1641390612319,1.3252,168.05,168.02,2.61194253]
[1641390612520,3.03219997,168.04,168.03,3.56]
[1641390612720,23.5442,168.12,168.04,36.0]
[1641390613120,23.5442,168.12,168.02,3.83040407]
[1641390613323,23.5442,168.12,168.02,2.35194253]
[1641390613820,2.89972242,168.11,168.02,2.35194253]
[1641390614221,22.6192,168.1,168.02,2.35194253]
[1641390614422,22.6192,168.1,168.02,2.61194253]
[1641390615224,27.51458308,168.09,168.01,8.7575]
[1641390615522,4.38,168.02,168.01,8.7575]
[1641390617623,9.38,168.02,168.01,8.7575]
[1641390619124,9.38,168.02,168.01,9.0175]
[1641390621930,2.9213,168.02,168.01,9.0175]
[1641390622531,5.95349997,168.02,168.01,4.0175]
[1641390622731,2.9213,168.02,168.01,4.0175]
[1641390623438,1.9213,168.02,168.01,4.0175]
[1641390623835,1.9213,168.02,168.01,6.23686314]
[1641390624035,1.9213,168.02,168.01,34.23686314]
[1641390624836,1.9213,168.02,168.01,6.23686314]
[1641390625438,1.9213,168.02,168.01,3.7575]
[1641390625869,2.27077409,168.06,168.01,3.7575]
[1641390626268,2.27077409,168.06,168.01,1.8362]
[1641390626667,2.27077409,168.06,168.01,2.0962]
[1641390627672,2.27077409,168.06,167.99,8.95324883]
[1641390627673,2.9038,168.01,167.99,8.95324883]
[1641390629275,2.9038,168.01,167.99,9.21324883]
[1641390630274,2.9038,168.01,167.99,6.45637133]
[1641390630676,3.03210005,168.0,167.99,6.45637133]
[1641390630877,2.9038,168.01,167.99,6.45637133]
[1641390631076,2.9038,168.01,167.99,7.93483287]
[1641390631279,2.9038,168.01,168.0,8.56]
[1641390631678,2.9038,168.01,168.0,15.71807334]
[1641390631879,2.9038,168.01,168.0,18.42429638]
[1641390632280,2.9038,168.01,168.0,18.16429638]
[1641390632678,1.7138,168.01,168.0,38.16429638]
[1641390633279,1.7138,168.01,168.0,13.16429638]
[1641390633478,1.7138,168.01,168.0,13.42429638]
[1641390634781,1.7138,168.01,168.0,44.42429638]
[1641390635383,23.0097,168.07,168.0,44.42429638]
[1641390635582,23.0097,168.07,168.0,44.16429638]
[1641390636182,23.0097,168.07,168.0,13.16429638]
[1641390636984,23.0097,168.07,168.0,13.42429638]
[1641390637588,23.0097,168.07,168.0,12.80429638]
[1641390640191,23.0097,168.07,168.0,11.32583484]
[1641390644097,72.8317,168.08,168.0,11.32583484]
[1641390644818,57.9599,168.08,168.0,11.32583484]
[1641390645020,125.2938,168.14,168.01,9.96431275]
[1641390645318,127.69456246,168.14,168.05,8.9182]
[1641390645518,127.69456246,168.14,168.07,2.29427364]
[1641390645719,48.48526246,168.14,168.07,10.85427364]
[1641390647120,48.48526246,168.14,168.07,8.56]
[1641390647920,48.48526246,168.14,168.08,0.06]
[1641390649122,48.48526246,168.14,168.09,2.92869717]
[1641390649323,48.48526246,168.14,168.1,0.06]
[1641390650525,48.48526246,168.14,168.06,0.06]
[1641390650927,48.48526246,168.14,168.07,2.25954965]
[1641390651125,48.48526246,168.14,168.08,0.06]
[1641390655728,47.48526246,168.14,168.08,0.06]
[1641390660335,45.0845,168.14,168.08,0.06]
[1641390660936,22.6735,168.14,168.08,0.06]
[1641390661736,22.6735,168.14,168.08,10.06]
[1641390662138,22.6735,168.14,168.08,18.62]
[1641390662340,22.6735,168.14,168.09,1.47846154]
[1641390662539,22.6735,168.14,168.1,0.06]
[1641390662737,22.6735,168.14,168.1,3.10769797]
[1641390662939,2.80374133,168.16,168.11,1.47846154]
[1641390663139,2.80374133,168.16,168.12,0.06]
[1641390665842,1.80374133,168.16,168.12,0.06]
[1641390666443,1.80374133,168.16,168.12,1.53846154]
[1641390666848,1.80374133,168.16,168.12,1.47846154]
[1641390667045,1.80374133,168.16,168.13,0.06]
[1641390667246,23.1144,168.17,168.13,0.06]
[1641390667447,6.06430002,168.15,168.14,1.47846154]
[1641390667647,23.1144,168.17,168.15,0.06]
[1641390668447,23.1144,168.17,168.15,1.53846154]
[1641390668647,6.06430002,168.16,168.15,1.47846154]
[1641390669850,19.17870002,168.17,168.16,0.06]
[1641390670777,19.17870002,168.17,168.16,3.09219997]
[1641390670948,2.34145031,168.18,168.16,3.09219997]
[1641390673350,2.34145031,168.18,168.17,3.03219997]
[1641390673551,23.3696,168.2,168.16,3.09219997]
[1641390674955,23.3696,168.2,168.16,3.35219997]
[1641390675257,23.3696,168.2,168.16,4.83066151]
[1641390676557,22.3696,168.2,168.16,4.83066151]
[1641390677658,22.3696,168.2,168.18,0.06]
[1641390678058,22.3696,168.2,168.18,3.09219997]
[1641390678294,2.21063856,168.21,168.18,6.12439994]
[1641390678485,2.21063856,168.21,168.18,6.38439994]
[1641390678685,98.97834855,168.23,168.18,6.38439994]
[1641390679685,98.97834855,168.23,168.18,3.35219997]
[1641390679886,2.78510117,168.22,168.18,0.32]
[1641390680085,26.68050117,168.22,168.14,0.06]
[1641390680286,24.34260131,168.22,168.14,0.06]
[1641390680985,24.34260131,168.22,168.14,4.02920725]
[1641390681585,24.34260131,168.22,168.14,4.28920725]
[1641390681785,24.34260131,168.22,168.14,4.22920725]
[1641390682286,24.34260131,168.22,168.14,1.73846154]
[1641390682486,24.34260131,168.22,168.15,0.06]
[1641390683090,24.34260131,168.22,168.16,1.47846154]
[1641390683291,24.34260131,168.22,168.17,0.06]
[1641390684488,24.34260131,168.22,168.17,1.53846154]
[1641390685091,24.34260131,168.22,168.17,1.79846154]
[1641390686093,24.3132,168.29,168.17,1.79846154]
[1641390686297,92.7,168.26,168.18,8.56]
[1641390686494,92.7,168.26,168.19,0.06]
[1641390686695,92.7,168.26,168.2,8.56]
[1641390686894,92.7,168.26,168.21,0.06]
[1641390687094,92.7,168.26,168.21,11.02853075]
[1641390687294,92.7,168.26,168.22,8.9095]
[1641390687494,92.7,168.26,168.23,0.06]
[1641390687696,92.7,168.26,168.24,5.67139239]
[1641390687897,92.7,168.26,168.25,0.06]
[1641390689897,92.7,168.26,168.25,3.09219997]
[1641390690299,2.31755149,168.29,168.25,3.35219997]
[1641390691803,2.31755149,168.29,168.25,3.29219997]
[1641390692204,2.31755149,168.29,168.26,0.06]
[1641390693004,2.31755149,168.29,168.22,0.06]
[1641390693305,2.31755149,168.29,168.22,8.62]
[1641390693507,2.31755149,168.29,168.2,0.06]
[1641390694205,2.31755149,168.29,168.22,0.06]
[1641390696808,24.6912,168.3,168.22,1.53846154]
[1641390697037,24.6912,168.3,168.22,1.79846154]
[1641390697508,167.2239,168.33,168.22,10.35846154]
[1641390697909,77.56243056,168.33,168.22,10.35846154]
[1641390698110,77.56243056,168.33,168.24,2.3462461]
[1641390698314,24.3967,168.32,168.24,2.3462461]
[1641390698514,24.3967,168.32,168.25,1.47846154]
[1641390698711,24.3967,168.32,168.26,0.06]
[1641390698912,24.3967,168.32,168.27,2.15874747]
[1641390699112,24.3967,168.32,168.28,0.06]
[1641390699815,24.3967,168.32,168.24,0.06]
[1641390700212,24.3967,168.32,168.24,1.53846154]
[1641390700815,24.3967,168.32,168.26,0.06]
[1641390701618,24.3967,168.32,168.26,1.53846154]
[1641390701817,24.3967,168.32,168.26,0.06]
[1641390702018,24.3967,168.32,168.26,1.53846154]
[1641390703721,24.3967,168.32,168.26,30.63082925]
[1641390705054,26.80684906,168.37,168.26,35.48282925]
[1641390705252,50.76184906,168.37,168.26,35.48282925]
[1641390705456,23.955,168.37,168.26,52.95052925]
[1641390705856,23.955,168.37,168.26,44.04282925]
[1641390706056,78.37611321,168.38,168.26,44.04282925]
[1641390706456,2.35841321,168.38,168.26,44.04282925]
[1641390706854,2.35841321,168.38,168.28,8.9069]
[1641390707057,2.35841321,168.38,168.29,2.63553845]
[1641390707656,25.30471321,168.38,168.3,1.47846154]
[1641390707856,25.30471321,168.38,168.31,0.06]
[1641390708161,25.30471321,168.38,168.32,2.92124354]
[1641390708360,25.30471321,168.38,168.33,0.06]
[1641390709861,25.30471321,168.38,168.31,0.06]
[1641390710259,25.30471321,168.38,168.31,1.53846154]